bitfinex/quotes_SOLUSD_20260306
["timestamp","ask_amount","ask_price","bid_price","bid_amount"]
[1772816739899,11.00737825,84.46,84.431,11.84389428]
[1772816740094,0.57985592,84.465,84.431,11.84389428]
[1772816740306,11.83908318,84.466,84.432,0.6070666]
[1772816740900,11.00737825,84.46,84.431,11.84389428]
[1772816741207,11.58723417,84.46,84.431,11.84389428]
[1772816742021,0.57985592,84.469,84.425,0.6070666]
[1772816743024,0.57985592,84.469,84.424,41.45740547]
[1772816743025,11.83902796,84.467,84.427,0.6070666]
[1772816743212,11.00737825,84.46,84.427,0.6070666]
[1772816743810,11.83902796,84.467,84.427,0.6070666]
[1772816744411,12.41888388,84.467,84.429,0.6070666]
[1772816745224,11.83902796,84.467,84.429,0.6070666]
[1772816746218,0.57985592,84.466,84.429,0.6070666]
[1772816746611,11.83922334,84.465,84.431,0.6070666]
[1772816747131,11.00737825,84.46,84.431,0.6070666]
[1772816747428,0.57985592,84.459,84.431,0.6070666]
[1772816748025,0.57985592,84.459,84.399,104.2]
[1772816748026,0.40169946,84.439,84.393,0.6070666]
[1772816748232,11.00737825,84.42,84.393,0.6070666]
[1772816748530,11.00737825,84.43,84.393,0.6070666]
[1772816748727,22.8515365,84.43,84.395,0.6070666]
[1772816748921,0.40169946,84.433,84.395,0.6070666]
[1772816748922,11.84358762,84.434,84.395,0.6070666]
[1772816749239,11.84290254,84.439,84.395,0.6070666]
[1772816749530,11.00737825,84.44,84.396,0.6070666]
[1772816750527,11.41037713,84.44,84.396,0.6070666]
[1772816750826,11.84286881,84.439,84.397,41.47066838]
[1772816751030,11.84286881,84.439,84.398,0.6070666]
[1772816751626,0.40363081,84.429,84.398,0.6070666]
[1772816752209,11.84286881,84.439,84.398,0.6070666]
[1772816752210,0.40425709,84.438,84.398,0.6070666]
[1772816752732,11.00737825,84.44,84.398,0.6070666]
[1772816753814,22.85014824,84.44,84.4,0.6070666]
[1772816754629,23.25562731,84.44,84.4,0.6070666]
[1772816754835,0.40547907,84.429,84.4,0.6070666]
[1772816755133,11.00737825,84.42,84.4,0.6070666]
[1772816755321,11.00737825,84.42,84.399,11.84848161]
[1772816755730,0.40547907,84.429,84.399,11.84848161]
[1772816756118,12.25169149,84.428,84.393,0.64153184]
[1772816756434,0.40727969,84.427,84.393,0.64153184]
[1772816756821,11.84314933,84.437,84.393,0.64153184]
[1772816757028,11.00737825,84.4,84.384,10.55638764]
[1772816757342,11.00737825,84.4,84.378,11.85133435]
[1772816758336,22.85577794,84.4,84.37,0.64153184]
[1772816758721,11.00737825,84.39,84.361,0.64153184]
[1772816758916,11.00737825,84.38,84.36,0.1]
[1772816759130,11.00737825,84.37,84.346,11.85592677]
[1772816759327,11.00737825,84.38,84.347,0.64153184]
[1772816759652,11.00737825,84.37,84.347,0.64153184]
[1772816760141,0.30901417,84.379,84.347,0.64153184]
[1772816760452,11.00737825,84.37,84.341,11.85656237]
[1772816760614,0.30966861,84.369,84.341,11.85656237]
[1772816761014,11.00737825,84.36,84.341,11.85656237]
[1772816761223,11.00737825,84.36,84.33,0.64153184]
[1772816761654,41.48000662,84.378,84.33,0.64153184]
[1772816761655,11.00737825,84.37,84.33,0.64153184]
[1772816761826,12.16174754,84.378,84.33,0.64153184]
[1772816761827,0.14216157,84.377,84.33,0.64153184]
[1772816762031,11.00737825,84.37,84.33,0.64153184]
[1772816762220,11.55255055,84.39,84.332,0.60429661]
[1772816762221,11.00737825,84.39,84.332,0.60429661]
[1772816762412,0.31156509,84.395,84.332,0.60429661]
[1772816762413,0.31156509,84.395,84.334,0.60429661]
[1772816762626,0.31156509,84.395,84.339,0.14216157]
[1772816762822,0.31156509,84.395,84.344,0.60429661]
[1772816763627,41.783241,84.395,84.344,0.60429661]
[1772816763834,11.00737825,84.39,84.344,0.60429661]
[1772816764641,11.00737825,84.39,84.346,0.60429661]
[1772816765242,11.00737825,84.39,84.347,0.60429661]
[1772816765540,0.31339732,84.389,84.347,0.60429661]
[1772816765740,11.00737825,84.38,84.347,0.60429661]
[1772816766643,11.00737825,84.38,84.349,0.60429661]
[1772816768136,0.14216157,84.402,84.349,0.60429661]
[1772816768137,11.00737825,84.39,84.349,0.60429661]
[1772816768523,0.31515724,84.389,84.349,0.60429661]
[1772816769046,0.31515724,84.398,84.351,0.60429661]
[1772816769345,11.00737825,84.39,84.351,0.60429661]
[1772816770444,0.31630701,84.389,84.351,0.60429661]
[1772816771023,11.00737825,84.38,84.353,0.60429661]
[1772816771242,11.85002607,84.388,84.353,0.60429661]
[1772816772048,0.31740486,84.379,84.345,0.60429661]
[1772816772230,0.31740486,84.369,84.302,0.60429661]
[1772816772540,0.31740486,84.369,84.311,0.60429661]
[1772816772740,11.00737825,84.36,84.313,0.60429661]
[1772816772942,41.80675395,84.359,84.315,0.60429661]
[1772816773145,0.31795129,84.358,84.315,0.60429661]
[1772816774731,11.00737825,84.35,84.315,0.60429661]
[1772816775341,11.85438078,84.357,84.317,0.60429661]
[1772816775546,11.00737825,84.35,84.317,0.60429661]
[1772816775751,0.31904088,84.356,84.317,0.60429661]
[1772816776421,0.31957229,84.37,84.318,0.60429661]
[1772816776625,0.31957229,84.369,84.318,0.60429661]
[1772816777250,0.32009275,84.359,84.318,0.60429661]
[1772816777730,11.85424026,84.358,84.319,41.50903117]
[1772816777932,11.85370965,84.362,84.32,0.60429661]
[1772816778133,11.00737825,84.37,84.32,0.60429661]
[1772816778447,0.32060649,84.369,84.32,0.60429661]
[1772816779942,0.32060649,84.369,84.322,0.60429661]
[1772816780449,11.85171138,84.376,84.323,0.74645818]
[1772816782048,11.85171138,84.376,84.326,0.60429661]
[1772816782242,0.32259719,84.375,84.326,0.60429661]
[1772816782442,0.32259719,84.369,84.326,0.60429661]
[1772816782631,11.00737825,84.36,84.326,0.60429661]
[1772816783548,0.32308351,84.359,84.326,0.60429661]
[1772816783851,11.33046176,84.35,84.315,0.60429661]
[1772816784355,11.8555051,84.349,84.317,0.60429661]
[1772816785767,0.32308351,84.35,84.317,0.60429661]
[1772816786056,0.32449953,84.349,84.317,0.60429661]
[1772816786838,0.32449953,84.347,84.318,11.85986384]
[1772816787038,9.46570562,84.35,84.319,0.60429661]
[1772816787351,12.1804813,84.349,84.319,0.60429661]
[1772816788154,11.85470566,84.355,84.319,0.60429661]
[1772816788837,0.32543471,84.355,84.321,0.60429661]
[1772816789038,11.85409974,84.359,84.321,0.60429661]
[1772816790134,11.85269345,84.37,84.321,0.60429661]
[1772816790327,21.31839907,84.37,84.321,0.60429661]
[1772816790551,9.46570562,84.36,84.321,0.60429661]
[1772816790757,0.32634234,84.359,84.321,0.60429661]
[1772816790944,11.85424026,84.358,84.323,0.60429661]
[1772816792453,9.46570562,84.36,84.323,0.60429661]
[1772816792631,12.18175784,84.359,84.323,0.60429661]
[1772816793238,12.18175784,84.359,84.301,151.64865397]
[1772816793239,9.46570562,84.34,84.315,0.61996629]
[1772816793444,0.3280919,84.339,84.308,0.61996629]
[1772816794260,9.46570562,84.35,84.308,0.61996629]
[1772816794442,0.32851756,84.358,84.308,0.61996629]
[1772816794953,0.32851756,84.358,84.297,11.86271706]
[1772816794954,9.46570562,84.34,84.297,11.86271706]
[1772816795152,9.46570562,84.34,84.281,29.66237683]
[1772816795153,11.85972319,84.319,84.289,11.86394428]
[1772816795367,4.82477569,84.355,84.289,11.86394428]
[1772816795368,0.32893414,84.338,84.3,0.71996629]
[1772816796156,9.46570562,84.32,84.3,0.1]
[1772816796337,9.46570562,84.33,84.3,0.71996629]
[1772816797257,11.85831683,84.329,84.301,11.86225548]
[1772816797440,11.85831683,84.329,84.301,12.48222177]
[1772816797842,11.8569108,84.339,84.302,0.61996629]
[1772816798157,0.3297692,84.338,84.302,0.61996629]
[1772816798459,9.46570562,84.33,84.302,0.61996629]
[1772816799343,11.85831683,84.329,84.303,11.86197406]
[1772816800245,11.85831683,84.329,84.104,70.15501678]
[1772816800246,0.33098219,84.319,84.287,0.61996629]
[1772816801356,0.37361761,84.337,84.288,0.61996629]
[1772816801577,29.64265861,84.338,84.288,0.61996629]
[1772816801578,9.46570562,84.33,84.288,0.61996629]
[1772816801960,0.28432314,84.347,84.288,0.61996629]
[1772816801961,0.23145604,84.343,84.288,0.61996629]
[1772816802260,0.23192499,84.319,84.288,0.61996629]
[1772816802445,0.23192499,84.319,84.283,11.86471059]
[1772816802446,0.23192499,84.309,84.282,11.86482524]
[1772816802642,0.23192499,84.309,84.285,11.86443953]
[1772816802842,0.23192499,84.309,84.281,11.86497385]
[1772816803449,11.86127057,84.308,84.284,11.86455554]
[1772816803645,0.23192499,84.309,84.287,11.86422579]
[1772816804467,0.23286706,84.319,84.287,0.61996629]
[1772816804669,12.09259025,84.319,84.288,0.61996629]
[1772816805254,9.46570562,84.32,84.288,0.61996629]
[1772816805449,0.23332273,84.337,84.29,0.61996629]
[1772816805654,9.46570562,84.33,84.29,0.61996629]
[1772816807459,11.85733257,84.336,84.292,0.61996629]
[1772816807770,9.46570562,84.33,84.292,0.61996629]
[1772816807974,11.85733257,84.336,84.292,0.61996629]
[1772816808276,9.46570562,84.33,84.292,0.61996629]
[1772816808472,0.23421273,84.344,84.292,0.61996629]
[1772816808672,9.46570562,84.34,84.292,0.61996629]
[1772816808969,0.23465331,84.329,84.292,0.61996629]
[1772816809167,9.46570562,84.32,84.292,0.61996629]
[1772816809472,9.46570562,84.31,84.287,12.48415856]
[1772816809670,9.46570562,84.3,84.28,0.71996629]
[1772816809969,11.86112989,84.309,84.281,0.61996629]
[1772816811060,11.86112989,84.309,84.28,11.96510813]
[1772816811061,11.86112989,84.309,84.282,11.86492964]
[1772816811273,11.86112989,84.309,84.283,0.61996629]
[1772816812277,0.23635874,84.294,84.28,0.1]
[1772816812580,9.46570562,84.3,84.28,0.1]
[1772816813278,9.46570562,84.31,84.28,0.71996629]
[1772816813490,9.46570562,84.32,84.28,0.71996629]
[1772816813698,11.85972319,84.319,84.28,0.71996629]
[1772816814368,21.32538664,84.32,84.28,0.71996629]
[1772816814569,9.46570562,84.32,84.28,0.71996629]
[1772816814984,11.85972319,84.319,84.28,0.71996629]
[1772816816082,11.85972319,84.319,84.281,41.52774645]
[1772816816381,9.46570562,84.32,84.282,0.60163167]
[1772816816677,0.23840243,84.326,84.282,0.60163167]
[1772816817083,9.46570562,84.32,84.282,0.60163167]
[1772816817680,9.46570562,84.32,84.284,0.60163167]
[1772816817880,9.46570562,84.33,84.284,0.60163167]
[1772816818081,9.46570562,84.34,84.285,0.60163167]
[1772816818665,9.46570562,84.31,84.284,0.60163167]
[1772816818871,0.42648471,84.339,84.284,0.60163167]
[1772816818872,9.46570562,84.3,84.284,0.60163167]
[1772816819082,9.46570562,84.31,84.284,0.60163167]
[1772816819679,11.86112989,84.309,84.284,0.60163167]
[1772816819889,9.46570562,84.3,84.28,0.1]
[1772816820096,9.46570562,84.29,84.28,0.1]
[1772816820899,9.46570562,84.29,84.268,0.60163167]
[1772816821079,0.14039689,84.289,84.261,0.60163167]
[1772816821480,9.46570562,84.3,84.261,0.60163167]
[1772816821693,9.46570562,84.3,84.263,0.60352673]
[1772816821694,11.86253692,84.299,84.263,0.60352673]
[1772816822281,0.14127949,84.299,84.263,0.60352673]
[1772816822478,9.46570562,84.29,84.263,0.60352673]
[1772816824102,11.86289521,84.297,84.265,0.60352673]
[1772816824306,9.46570562,84.29,84.265,0.60352673]
[1772816826218,9.46570562,84.29,84.267,0.60352673]
[1772816826819,11.86301058,84.296,84.267,0.60352673]
[1772816827208,9.46570562,84.29,84.267,0.60352673]
[1772816827722,0.14341399,84.307,84.267,0.60352673]
[1772816828522,0.14341399,84.307,84.25,47.57741651]
[1772816828523,0.14382504,84.289,84.261,0.60352673]
[1772816828821,4.42323873,84.29,84.261,0.60352673]
[1772816829811,4.42323873,84.29,84.265,0.60352673]
[1772816831736,4.42323873,84.28,84.265,0.60352673]
[1772816832024,4.42323873,84.29,84.266,12.47070922]
[1772816832722,4.42323873,84.29,84.267,0.60352673]
[1772816832920,4.42323873,84.28,84.267,0.60352673]
[1772816833124,0.14302381,84.279,84.261,11.72477609]
[1772816833815,0.14302381,84.279,84.252,0.66429213]
[1772816834118,0.14302381,84.279,84.254,0.66429213]
[1772816836208,0.14302381,84.279,84.253,11.86901356]
[1772816836209,4.42323873,84.28,84.256,0.66429213]
[1772816836727,4.42323873,84.28,84.25,0.1]
[1772816836728,4.42323873,84.27,84.25,0.1]
[1772816837020,4.42323873,84.27,84.251,0.66429213]
[1772816837619,4.42323873,84.27,84.252,0.66429213]
[1772816837920,4.42323873,84.28,84.252,0.66429213]
[1772816838423,4.42323873,84.27,84.252,0.66429213]
[1772816839714,4.42323873,84.27,84.25,0.1]
[1772816839715,4.42323873,84.26,84.25,0.1]
[1772816840115,4.42323873,84.26,84.25,0.01108051]
[1772816840320,4.42323873,84.26,84.22,104.2]
[1772816840321,41.53858934,84.259,84.217,0.66429213]
[1772816840522,41.53858934,84.259,84.19,0.1]
[1772816840523,4.42323873,84.24,84.21,0.76429213]
[1772816840725,4.42323873,84.23,84.213,11.87457779]
[1772816841032,4.42323873,84.23,84.216,11.87422817]
[1772816841230,4.42323873,84.23,84.211,11.8748116]
[1772816841524,4.42323873,84.24,84.217,0.66429213]
[1772816841732,0.28432314,84.257,84.217,0.66429213]
[1772816841733,0.14216157,84.258,84.217,0.66429213]
[1772816841932,4.42323873,84.25,84.217,0.66429213]
[1772816842322,11.86816838,84.259,84.217,0.66429213]
[1772816842514,11.86816838,84.259,84.219,0.66429213]
[1772816842715,4.42323873,84.25,84.219,0.66429213]
[1772816842918,11.86816838,84.259,84.219,0.66429213]
[1772816843223,4.42323873,84.25,84.219,0.66429213]
[1772816843826,4.42323873,84.26,84.219,0.66429213]
[1772816844020,0.71100002,84.266,84.219,0.66429213]
[1772816844413,11.86816838,84.259,84.221,0.66429213]
[1772816845833,11.86816838,84.259,84.222,41.55683787]
[1772816846033,11.86816838,84.259,84.223,0.66429213]
[1772816846839,9.48611069,84.26,84.223,0.66429213]
[1772816847039,21.3541824,84.26,84.223,0.66429213]
[1772816848654,21.3541824,84.26,84.225,0.66429213]
[1772816848845,0.71100002,84.266,84.225,0.66429213]
[1772816849018,12.57828865,84.266,84.225,0.66429213]
[1772816849719,9.48611069,84.26,84.225,0.66429213]
[1772816850522,9.48611069,84.28,84.227,0.66429213]
[1772816850740,0.14216157,84.288,84.229,0.66429213]
[1772816851143,9.48611069,84.28,84.229,0.66429213]
[1772816851439,11.86321383,84.295,84.233,0.66429213]
[1772816851845,0.14216157,84.294,84.233,0.66429213]
[1772816852323,11.86321383,84.295,84.233,0.66429213]
[1772816852638,0.14216157,84.294,84.235,0.94861527]
[1772816852836,11.86253692,84.299,84.238,0.66429213]
[1772816853035,11.86253692,84.299,84.242,0.66429213]
[1772816854040,7.34983332,84.308,84.238,0.14216157]
[1772816854041,7.34983332,84.308,84.25,0.66429213]
[1772816854227,11.86141127,84.307,84.252,0.66429213]
[1772816854629,7.34983332,84.308,84.254,0.94861527]
[1772816854843,48.86433224,84.308,84.255,0.66429213]
[1772816855423,19.2111558,84.308,84.255,0.66429213]
[1772816855842,7.34983332,84.308,84.257,0.66429213]
[1772816856048,9.48611069,84.33,84.265,0.14216157]
[1772816856233,9.48611069,84.34,84.272,0.66429213]
[1772816856645,9.48611069,84.33,84.272,0.66429213]
[1772816856833,0.14216157,84.328,84.275,0.66429213]
[1772816857146,9.48611069,84.32,84.275,0.66429213]
[1772816857332,9.48611069,84.31,84.275,0.66429213]
[1772816858244,9.48611069,84.3,84.275,0.66429213]
[1772816858640,9.48611069,84.31,84.275,0.66429213]
[1772816859044,11.86112989,84.309,84.275,0.66429213]
[1772816859347,11.86112989,84.309,84.263,29.66868047]
[1772816859348,9.48611069,84.3,84.268,0.66429213]
[1772816859739,0.14216157,84.308,84.268,0.66429213]
[1772816860053,11.86112989,84.309,84.268,0.66429213]
[1772816861047,11.86112989,84.309,84.27,0.66429213]
[1772816862130,11.86112989,84.309,84.272,0.66429213]
[1772816863954,41.51395461,84.309,84.274,0.66429213]
[1772816864951,0.14216157,84.308,84.273,11.86619676]
[1772816865249,9.48611069,84.3,84.273,11.86619676]
[1772816865440,9.48611069,84.3,84.269,11.86665917]
[1772816865833,11.86253692,84.299,84.269,0.66429213]
[1772816868145,0.14216157,84.308,84.27,11.8666192]
[1772816868348,0.14216157,84.308,84.271,0.66429213]
[1772816869540,4.42265382,84.3,84.271,0.66429213]
[1772816869738,4.42265382,84.3,84.24,59.35422602]
[1772816869739,4.42265382,84.29,84.259,0.66429213]
[1772816869959,4.42265382,84.28,84.259,0.66429213]
[1772816870339,11.86535198,84.279,84.247,0.66429213]
[1772816871369,11.86480753,84.283,84.247,0.66429213]
[1772816872359,29.65690337,84.298,84.249,0.66429213]
[1772816872360,4.42265382,84.28,84.249,0.66429213]
[1772816873561,4.42265382,84.28,84.226,0.28432314]
[1772816873562,4.42265382,84.29,84.251,0.66429213]
[1772816873769,11.86281836,84.297,84.251,0.66429213]
[1772816874648,4.42265382,84.28,84.251,0.66429213]
[1772816874852,4.42265382,84.29,84.251,0.66429213]
[1772816875644,41.51543187,84.306,84.253,0.66429213]
[1772816876060,0.14216157,84.305,84.253,0.66429213]
[1772816877270,4.42265382,84.3,84.253,0.66429213]
[1772816877458,4.42265382,84.29,84.253,0.66429213]
[1772816878377,4.42265382,84.29,84.224,3.83599559]
[1772816878378,4.42265382,84.27,84.234,0.66429213]
[1772816878673,4.42265382,84.27,84.235,0.66429213]
[1772816878872,11.86394428,84.289,84.236,0.66429213]
[1772816880556,0.14216157,84.297,84.237,41.54943789]
[1772816880756,0.14216157,84.297,84.238,0.66429213]
[1772816881471,11.86079953,84.312,84.241,0.66429213]
[1772816881668,11.86079953,84.312,84.243,0.66429213]
[1772816881976,16.71103787,84.33,84.253,0.66429213]
[1772816881977,4.42265382,84.33,84.253,0.66429213]
[1772816882276,4.42265382,84.33,84.248,0.14216157]
[1772816882277,4.42265382,84.32,84.263,0.66429213]
[1772816882575,11.85972319,84.319,84.266,0.66429213]
[1772816883479,41.50903117,84.319,84.266,0.66429213]
[1772816883952,41.50903117,84.319,84.265,0.28432314]
[1772816883953,4.42265382,84.33,84.268,0.66429213]
[1772816884169,11.8555051,84.349,84.265,0.28432314]
[1772816884170,4.42265382,84.32,84.27,0.66429213]
[1772816884791,11.85972319,84.319,84.272,0.66429213]
[1772816886398,4.42265382,84.32,84.272,0.66429213]
[1772816886399,0.42648471,84.329,84.272,0.66429213]
[1772816886700,4.42265382,84.32,84.274,0.66429213]
[1772816887080,0.14216157,84.327,84.274,0.66429213]
[1772816887921,4.42265382,84.32,84.274,0.66429213]
[1772816889997,11.85972319,84.319,84.276,0.66429213]
[1772816892188,11.85972319,84.319,84.278,0.66429213]
[1772816894295,0.14216157,84.327,84.28,0.66429213]
[1772816895416,4.42265382,84.32,84.28,0.66429213]
[1772816895607,4.42265382,84.31,84.28,0.66429213]
[1772816895909,0.14216157,84.322,84.28,0.66429213]
[1772816896101,0.14216157,84.319,84.28,0.66429213]
[1772816896300,0.14216157,84.317,84.282,0.66429213]
[1772816896688,11.85986384,84.318,84.282,0.66429213]
[1772816897604,4.42265382,84.31,84.275,11.86589075]
[1772816897994,4.42265382,84.31,84.276,0.66429213]
[1772816898310,0.14216157,84.317,84.276,0.66429213]
[1772816898798,4.42265382,84.31,84.276,0.66429213]
[1772816899004,4.42265382,84.31,84.248,3.69383402]
[1772816899005,4.42265382,84.3,84.24,0.8064537]
[1772816899204,4.42265382,84.3,84.244,0.66429213]
[1772816899596,0.42648471,84.309,84.244,0.66429213]
[1772816899597,4.42265382,84.29,84.244,0.66429213]
[1772816899800,4.42265382,84.3,84.244,0.66429213]
[1772816901106,4.42265382,84.32,84.249,0.66429213]
[1772816901308,29.64661211,84.327,84.256,0.14216157]
[1772816901613,4.42265382,84.32,84.263,0.66429213]
[1772816902604,0.14216157,84.326,84.266,0.66429213]
[1772816902808,4.42265382,84.33,84.265,0.28432314]
[1772816902809,4.42265382,84.33,84.27,0.66429213]
[1772816902997,4.42265382,84.33,84.272,0.66429213]
[1772816903812,4.42265382,84.35,84.292,0.66429213]
[1772816904013,41.49082459,84.356,84.292,0.66429213]
[1772816904204,4.42265382,84.35,84.292,0.66429213]
[1772816904718,4.42265382,84.34,84.295,0.66429213]
[1772816905518,0.14216157,84.348,84.295,0.66429213]
[1772816907313,4.42265382,84.34,84.297,0.66429213]
[1772816908023,0.14216157,84.348,84.297,0.66429213]
[1772816908328,29.63876275,84.349,84.298,0.66429213]
[1772816909610,29.63876275,84.349,84.297,0.28432314]
[1772816909611,41.49426785,84.349,84.3,0.66429213]
[1772816910011,4.41736271,84.34,84.3,0.66429213]
[1772816910208,41.49426785,84.349,84.3,0.66429213]
[1772816911222,4.41736271,84.34,84.3,0.66429213]
[1772816911525,4.41736271,84.33,84.3,0.66429213]
[1772816911719,11.85831683,84.329,84.302,0.66429213]
[1772816912119,41.5041089,84.329,84.295,12.52728315]
[1772816912812,11.85831683,84.329,84.296,0.66429213]
[1772816913822,11.85831683,84.329,84.298,0.66429213]
[1772816915430,4.41736271,84.31,84.252,0.66429213]
[1772816915634,4.41736271,84.3,84.261,0.66429213]
[1772816915927,11.86112989,84.309,84.264,0.66429213]
[1772816916624,11.85972319,84.319,84.264,0.66429213]
[1772816916931,11.85972319,84.319,84.267,0.66429213]
[1772816917808,29.64808402,84.323,84.269,0.66429213]
[1772816918724,0.14216157,84.328,84.269,0.66429213]
[1772816919126,11.85831683,84.329,84.273,0.66429213]
[1772816919732,11.85831683,84.329,84.275,0.94861527]
[1772816919916,11.85831683,84.329,84.276,0.66429213]
[1772816921019,11.85831683,84.329,84.277,41.52971747]
[1772816921333,11.85831683,84.329,84.278,0.66429213]
[1772816922714,4.61736271,84.36,84.283,0.66429213]
[1772816923023,11.85579562,84.347,84.284,88.98486069]
[1772816923223,11.85579562,84.347,84.289,0.14216157]
[1772816923424,11.85579562,84.347,84.292,0.66429213]
[1772816924930,11.85626956,84.344,84.295,0.66429213]
[1772816926436,4.41736271,84.35,84.298,0.66429213]
[1772816926615,41.48984091,84.358,84.298,0.66429213]
[1772816926824,4.41736271,84.34,84.298,0.66429213]
[1772816927936,4.41736271,84.35,84.298,0.66429213]
[1772816929315,4.41736271,84.34,84.3,0.66429213]
[1772816929528,4.41736271,84.33,84.299,11.86253692]
[1772816930839,4.41736271,84.34,84.3,0.66429213]
[1772816931738,41.4991878,84.339,84.302,0.66429213]
[1772816932238,4.41736271,84.33,84.302,0.66429213]
[1772816933038,11.85831683,84.329,84.295,0.66429213]
[1772816933421,4.41736271,84.32,84.288,0.66429213]
[1772816933838,41.5041089,84.329,84.288,0.66429213]
[1772816934242,0.14216157,84.328,84.288,0.66429213]
[1772816934544,4.41736271,84.32,84.288,0.66429213]
[1772816935338,4.41736271,84.32,84.289,11.86394428]
[1772816935543,11.85950549,84.321,84.29,0.66429213]
[1772816936422,4.41736271,84.32,84.289,11.86394428]
[1772816937342,4.41736271,84.32,84.283,0.66429213]
[1772816937538,0.28432314,84.337,84.264,0.66429213]
[1772816937539,4.41736271,84.31,84.264,0.66429213]
[1772816938643,41.93551588,84.319,84.264,0.66429213]
[1772816938644,4.41736271,84.3,84.264,0.66429213]
[1772816940042,11.86253692,84.299,84.265,11.86732332]
[1772816940429,4.41736271,84.29,84.261,11.86781422]
[1772816940636,11.86253692,84.299,84.262,0.66429213]
[1772816941344,4.41736271,84.31,84.262,0.66429213]
[1772816941729,4.41736271,84.3,84.262,0.66429213]
[1772816942330,11.86253692,84.299,84.264,0.66429213]
[1772816942531,41.51887922,84.299,84.264,0.66429213]
[1772816943747,4.41736271,84.31,84.264,0.66429213]
[1772816945050,4.41736271,84.31,84.266,0.66429213]
[1772816945843,11.86112989,84.309,84.266,0.66429213]
[1772816946345,11.86112989,84.309,84.268,0.66429213]
[1772816946656,41.51395461,84.309,84.268,0.66429213]
[1772816946858,11.86112989,84.309,84.268,0.66429213]
[1772816947242,11.86040358,84.315,84.268,0.66429213]
[1772816948341,41.64873146,84.324,84.27,0.66429213]
[1772816948535,4.41736271,84.32,84.27,0.66429213]
[1772816949954,41.50656989,84.324,84.272,0.66429213]
[1772816949955,0.14216157,84.323,84.272,0.66429213]
[1772816950737,4.41736271,84.32,84.274,0.66429213]
[1772816951555,0.14216157,84.323,84.274,0.66429213]
[1772816951758,11.85901997,84.324,84.275,0.66429213]
[1772816952641,4.41736271,84.35,84.277,0.66429213]
[1772816952854,11.85409974,84.359,84.283,0.66429213]
[1772816953054,4.41736271,84.35,84.284,0.66429213]
[1772816953354,4.41736271,84.35,84.292,0.66429213]
[1772816954467,4.41736271,84.34,84.292,0.66429213]
[1772816955058,41.4991878,84.339,84.294,0.66429213]
[1772816955446,0.98032311,84.357,84.295,0.66429213]
[1772816955447,11.85564565,84.348,84.295,0.66429213]
[1772816956265,4.41736271,84.34,84.295,0.66429213]
[1772816957058,11.85585322,84.347,84.298,0.66429213]
[1772816957738,11.85452131,84.356,84.301,0.14216157]
[1772816957939,11.85452131,84.356,84.302,0.66429213]
[1772816958656,11.85452131,84.356,84.297,0.28432314]
[1772816958657,11.85452131,84.356,84.304,0.94861527]
[1772816958864,4.41736271,84.35,84.305,0.66429213]
[1772816960652,41.49082459,84.356,84.307,0.66429213]
[1772816960653,11.85466184,84.355,84.307,0.66429213]
[1772816960858,11.85466184,84.355,84.308,0.66429213]
[1772816961063,4.41736271,84.35,84.308,0.66429213]
[1772816961261,41.49131645,84.355,84.308,0.66429213]
[1772816962059,4.41736271,84.34,84.277,0.66429213]
[1772816962363,4.41736271,84.35,84.293,0.66429213]
[1772816962545,0.14216157,84.354,84.293,0.66429213]
[1772816962747,0.14216157,84.354,84.296,0.66429213]
[1772816963254,41.49131645,84.355,84.295,0.28432314]
[1772816963255,11.85466184,84.355,84.298,0.66429213]
[1772816963445,11.85466184,84.355,84.302,0.66429213]
[1772816964965,11.85466184,84.355,84.304,0.94861527]
[1772816965138,11.85466184,84.355,84.305,0.66429213]
[1772816967360,11.85466184,84.355,84.304,0.28432314]
[1772816967361,0.69599997,84.357,84.308,0.8064537]
[1772816967860,11.85452131,84.356,84.308,0.8064537]
[1772816968064,4.41736271,84.35,84.308,0.66429213]
[1772816968444,4.41850036,84.34,84.308,0.66429213]
[1772816968961,4.41850036,84.34,84.303,0.66429213]
[1772816969555,11.8569108,84.339,84.304,11.86183336]
[1772816970673,11.8555051,84.349,84.304,0.66429213]
[1772816971861,41.49426785,84.349,84.304,0.66429213]
[1772816972880,41.49426785,84.349,84.306,0.66429213]
[1772816975180,41.49426785,84.349,84.308,0.66429213]
[1772816976055,59.46981321,84.36,84.308,0.66429213]
[1772816976056,11.85424026,84.358,84.308,0.66429213]
[1772816977279,11.85424026,84.358,84.31,0.66429213]
[1772816977659,11.85424026,84.358,84.312,0.66429213]
[1772816977855,11.851484,84.378,84.315,0.66429213]
[1772816978061,41.47017701,84.398,84.324,0.14216157]
[1772816978264,4.41850036,84.39,84.333,0.66429213]
[1772816980684,4.41850036,84.37,84.335,0.66429213]
[1772816981261,4.41850036,84.38,84.335,0.66429213]
[1772816981889,41.47951504,84.379,84.337,0.66429213]
[1772816982595,4.41850036,84.37,84.337,0.66429213]
[1772816983094,41.47951504,84.379,84.337,0.66429213]
[1772816983669,11.85129001,84.379,84.337,0.66429213]
[1772816984194,4.41850036,84.38,84.339,0.66429213]
[1772816985477,41.47509124,84.388,84.339,0.66429213]
[1772816985690,0.14216157,84.387,84.339,0.66429213]
[1772816985895,11.85002607,84.388,84.339,0.66429213]
[1772816986093,11.85002607,84.388,84.341,0.66429213]
[1772816986278,29.62195772,84.397,84.344,0.66429213]
[1772816987482,11.848622,84.398,84.346,0.66429213]